bitfinex/quotes_BTCUSD_20240728
["timestamp","ask_amount","ask_price","bid_price","bid_amount"]
[1722170044265,0.01028,68119.0,68118.0,2.24123257]
[1722170044610,0.01028,68119.0,68118.0,2.39633257]
[1722170044815,0.01028,68119.0,68118.0,2.50432526]
[1722170045154,0.01028,68119.0,68118.0,2.51832526]
[1722170045357,0.01028,68119.0,68118.0,2.49032526]
[1722170045803,0.0333151,68119.0,68118.0,2.50432526]
[1722170045965,0.0333151,68119.0,68118.0,2.38233257]
[1722170046165,0.0333151,68119.0,68118.0,2.49032022]
[1722170046166,0.00112137,68119.0,68118.0,2.49032022]
[1722170046362,0.00461773,68121.0,68120.0,1.952634]
[1722170046588,0.00461773,68121.0,68120.0,2.34788122]
[1722170046993,0.00461773,68121.0,68120.0,2.22589357]
[1722170047400,0.00461773,68121.0,68120.0,2.34788117]
[1722170047612,0.00461773,68121.0,68120.0,2.36188117]
[1722170047907,0.00461773,68121.0,68120.0,2.23989357]
[1722170048875,1e-08,68121.0,68120.0,2.38189357]
[1722170049138,8e-05,68124.0,68120.0,2.38189357]
[1722170049139,1e-08,68123.0,68122.0,2.033696]
[1722170049356,1e-08,68123.0,68122.0,2.30695557]
[1722170049603,1e-08,68123.0,68122.0,1.87795557]
[1722170049765,1e-08,68123.0,68122.0,2.30595557]
[1722170050125,1e-08,68123.0,68122.0,1.91598357]
[1722170050758,1e-08,68123.0,68122.0,1.84888357]
[1722170050934,1e-08,68123.0,68122.0,1.86288357]
[1722170051311,1e-08,68123.0,68122.0,1.56288357]
[1722170051677,1e-08,68123.0,68122.0,1.154752]
[1722170052230,1e-08,68123.0,68122.0,10.154752]
[1722170052739,0.06190001,68123.0,68122.0,10.154752]
[1722170053000,0.14390001,68123.0,68122.0,10.154752]
[1722170053679,0.14390001,68123.0,68122.0,9.585008]
[1722170053897,0.14482354,68123.0,68122.0,9.407008]
[1722170054146,0.14482354,68123.0,68122.0,9.81988]
[1722170054350,0.15713318,68123.0,68122.0,9.585008]
[1722170054563,0.14482354,68123.0,68122.0,9.571008]
[1722170054800,0.14390001,68123.0,68122.0,9.80588]
[1722170055019,0.14390001,68123.0,68122.0,10.040752]
[1722170055463,0.06190001,68123.0,68122.0,10.054752]
[1722170056312,0.08586113,68123.0,68122.0,10.054752]
[1722170056532,0.08586113,68123.0,68122.0,10.040752]
[1722170056812,0.06282354,68123.0,68122.0,10.054752]
[1722170057036,0.06282354,68123.0,68122.0,10.040752]
[1722170057271,0.06282354,68123.0,68122.0,10.026752]
[1722170057482,0.06282354,68123.0,68122.0,10.040752]
[1722170057483,0.06190001,68123.0,68122.0,10.040752]
[1722170057683,0.06190001,68123.0,68122.0,9.862752]
[1722170057799,0.06190001,68123.0,68122.0,10.040752]
[1722170058042,1e-08,68123.0,68122.0,10.054752]
[1722170058407,1e-08,68123.0,68122.0,10.040752]
[1722170058543,1e-08,68123.0,68122.0,9.876752]
[1722170058944,1e-08,68123.0,68122.0,9.862752]
[1722170059148,1e-08,68123.0,68122.0,10.040752]
[1722170059571,0.00092354,68123.0,68122.0,10.040752]
[1722170059977,0.02396052,68123.0,68122.0,10.026752]
[1722170060271,0.02396052,68123.0,68122.0,9.862752]
[1722170060467,0.02396052,68123.0,68122.0,10.054752]
[1722170060669,0.02396052,68123.0,68122.0,10.040752]
[1722170060862,0.02396052,68123.0,68122.0,9.862752]
[1722170061135,0.02303699,68123.0,68122.0,10.054752]
[1722170061663,0.02303699,68123.0,68122.0,9.876752]
[1722170061871,0.02303699,68123.0,68122.0,10.054752]
[1722170062320,0.02303699,68123.0,68122.0,11.21765557]
[1722170062538,0.02303699,68123.0,68122.0,11.36264493]
[1722170062680,0.02303699,68123.0,68122.0,11.36264515]
[1722170063063,0.02303699,68123.0,68122.0,11.34864515]
[1722170063680,0.02303699,68123.0,68122.0,11.36264515]
[1722170064082,0.02303699,68123.0,68122.0,11.33464515]
[1722170064334,0.02303699,68123.0,68122.0,11.34864182]
[1722170064485,0.02303699,68123.0,68122.0,11.36264182]
[1722170064869,0.02303699,68123.0,68122.0,11.34864182]
[1722170065172,0.02303699,68123.0,68122.0,11.36264002]
[1722170065585,0.02303699,68123.0,68122.0,11.36364002]
[1722170065774,0.02303699,68123.0,68122.0,11.09864002]
[1722170065994,0.02303699,68123.0,68122.0,11.11264002]
[1722170066126,0.02303699,68123.0,68122.0,11.36264002]
[1722170067159,0.02303699,68123.0,68122.0,11.11264002]
[1722170067522,0.02303699,68123.0,68122.0,10.79174002]
[1722170067639,0.02303699,68123.0,68122.0,11.21974002]
[1722170067845,0.02303699,68123.0,68122.0,11.22074002]
[1722170068420,0.02303699,68123.0,68122.0,11.22074332]
[1722170068740,0.02303699,68123.0,68122.0,11.75041532]
[1722170068939,0.00217788,68129.0,68128.0,0.622126]
[1722170069068,0.00217788,68129.0,68128.0,1.54137732]
[1722170069274,0.002,68139.0,68131.0,1.247902]
[1722170069478,0.00828,68147.0,68146.0,0.777195]
[1722170069824,0.00017782,68152.0,68148.0,1.23154]
[1722170069973,0.00017782,68152.0,68148.0,1.68342368]
[1722170070171,0.00017782,68152.0,68148.0,1.78351726]
[1722170070407,0.00017782,68152.0,68148.0,2.03351726]
[1722170070631,0.00017782,68152.0,68148.0,2.31147945]
[1722170070810,0.00017782,68152.0,68148.0,2.43341379]
[1722170071350,0.00017782,68152.0,68148.0,2.22436557]
[1722170071507,0.00017782,68152.0,68148.0,2.36029814]
[1722170071709,0.00017782,68152.0,68148.0,2.00358257]
[1722170071710,0.02502746,68149.0,68148.0,2.00358257]
[1722170071991,0.02502746,68149.0,68148.0,2.04752951]
[1722170072166,0.02502746,68149.0,68148.0,2.06152951]
[1722170072368,0.02502746,68149.0,68148.0,1.76758257]
[1722170072544,0.02502746,68149.0,68148.0,1.58958257]
[1722170072748,0.02502746,68149.0,68148.0,1.61248257]
[1722170073405,0.002,68149.0,68148.0,1.61248257]
[1722170074365,0.002,68149.0,68148.0,1.43448257]
[1722170075588,0.002,68149.0,68148.0,1.61248257]
[1722170075784,0.002,68149.0,68148.0,1.15444]
[1722170075985,0.00284,68149.0,68148.0,1.15444]
[1722170076386,0.00284,68149.0,68148.0,1.16319214]
[1722170076786,0.02586759,68149.0,68148.0,1.16319214]
[1722170077446,0.02586759,68149.0,68148.0,1.36345171]
[1722170077805,0.02586759,68149.0,68148.0,1.18545171]
[1722170078003,0.00284,68149.0,68148.0,1.36345171]
[1722170078330,0.00284,68149.0,68148.0,1.62123471]
[1722170078874,0.00284,68149.0,68148.0,1.87123471]
[1722170079119,0.00284,68149.0,68148.0,1.62123471]
[1722170081176,0.02586789,68149.0,68148.0,1.62123471]
[1722170081385,0.02586789,68149.0,68148.0,1.68233471]
[1722170081740,0.02586789,68149.0,68148.0,1.44755171]
[1722170082368,0.02586789,68149.0,68148.0,1.68233471]
[1722170082570,0.00284,68149.0,68148.0,1.16319214]
[1722170083274,0.06584,68149.0,68148.0,0.741657]
[1722170083468,0.06584,68149.0,68148.0,0.684874]
[1722170083669,0.06584,68149.0,68148.0,0.919657]
[1722170084305,0.06584,68149.0,68148.0,0.684874]
[1722170084710,0.06584,68149.0,68148.0,0.919657]
[1722170084843,0.06676353,68149.0,68148.0,0.919657]
[1722170085261,0.06676353,68149.0,68148.0,0.684874]
[1722170085667,0.06676353,68149.0,68148.0,0.919657]
[1722170085982,0.02586812,68149.0,68148.0,1.15444]
[1722170086185,0.00284,68149.0,68148.0,1.15444]
[1722170087897,0.00284,68149.0,68148.0,1.389223]
[1722170088425,0.00284,68149.0,68148.0,1.53948257]
[1722170088630,0.00284,68149.0,68148.0,1.86248257]
[1722170088801,0.00284,68149.0,68148.0,1.61248257]
[1722170088968,0.00284,68149.0,68148.0,1.37769957]
[1722170089371,0.0258671,68149.0,68148.0,1.37769957]
[1722170089583,0.0258671,68149.0,68148.0,1.61248257]
[1722170090373,0.0258671,68149.0,68148.0,1.32769957]
[1722170090547,0.0258671,68149.0,68148.0,1.30469957]
[1722170095486,0.0258671,68149.0,68148.0,1.15444]
[1722170096462,0.0258671,68149.0,68148.0,0.819657]
[1722170096463,0.0918671,68149.0,68148.0,0.819657]
[1722170096803,0.06884,68149.0,68148.0,0.584874]
[1722170097014,0.06976353,68149.0,68148.0,0.584874]
[1722170097219,0.06976353,68149.0,68148.0,0.350091]
[1722170097421,0.06976353,68149.0,68148.0,0.584874]
[1722170097624,0.06976353,68149.0,68148.0,0.0547]
[1722170097841,0.06976353,68149.0,68148.0,0.2047]
[1722170098051,0.08067888,68149.0,68148.0,0.2167]
[1722170098298,0.50934688,68149.0,68148.0,0.0527]
[1722170098504,0.74412588,68149.0,68148.0,0.0527]
[1722170098704,0.80268971,68149.0,68148.0,0.026]
[1722170098860,0.74412588,68149.0,68148.0,0.026]
[1722170099256,0.74412588,68149.0,68148.0,0.014]
[1722170099458,1.07276096,68149.0,68148.0,0.014]
[1722170099771,1.02890488,68149.0,68148.0,0.014]
[1722170100013,0.31223353,68140.0,68137.0,0.0267]
[1722170100219,0.31223353,68140.0,68127.0,0.234855]
[1722170100220,0.11833353,68137.0,68136.0,0.0267]
[1722170100372,0.35315453,68137.0,68136.0,0.0267]
[1722170100589,0.11833853,68134.0,68132.0,0.2047]
[1722170100756,0.12936638,68133.0,68132.0,0.0267]
[1722170100958,0.19266638,68133.0,68132.0,0.0267]
[1722170101155,0.19266638,68133.0,68132.0,0.2047]
[1722170101432,0.19266638,68133.0,68132.0,0.0267]
[1722170101633,0.42750038,68133.0,68132.0,0.0267]
[1722170101809,0.42657685,68133.0,68132.0,0.0267]
[1722170101983,0.42750038,68133.0,68132.0,0.0267]
[1722170103352,0.42750038,68133.0,68132.0,0.0357]
[1722170103353,0.41647453,68133.0,68132.0,0.0357]
[1722170103754,0.417794,68133.0,68132.0,0.0357]
[1722170103990,0.652628,68133.0,68132.0,0.0357]
[1722170104174,0.652628,68133.0,68132.0,0.015]
[1722170104363,1.03994731,68133.0,68132.0,0.015]
[1722170104591,1.06188361,68133.0,68132.0,0.015]
[1722170104795,1.08381991,68133.0,68132.0,0.015]
[1722170105179,1.17911991,68133.0,68132.0,0.015]
[1722170105374,1.20111875,68133.0,68132.0,0.015]
[1722170105657,1.09142793,68133.0,68132.0,0.015]
[1722170106349,1.32626193,68133.0,68132.0,0.015]
[1722170106826,1.32626193,68133.0,68132.0,0.006]
[1722170107306,1.32626193,68133.0,68132.0,0.004]
[1722170107528,0.50222653,68123.0,68122.0,9.000924]
[1722170107747,0.73709553,68123.0,68122.0,9.000924]
[1722170109192,0.97196453,68123.0,68122.0,9.000924]
[1722170109639,0.97196453,68123.0,68122.0,9.002924]
[1722170110594,0.9960055,68123.0,68122.0,9.002924]
[1722170111088,1.0193055,68123.0,68122.0,9.002924]
[1722170115519,0.2913985,68123.0,68122.0,9.002924]
[1722170115723,0.2086985,68123.0,68122.0,9.002924]
[1722170115981,0.0912645,68123.0,68122.0,9.002924]
[1722170116393,0.0912645,68123.0,68122.0,9.029624]
[1722170116546,0.2086985,68123.0,68122.0,9.029624]
[1722170116950,0.6784365,68123.0,68122.0,9.002924]
[1722170117191,0.2086985,68123.0,68122.0,9.029624]
[1722170117650,0.0912645,68123.0,68122.0,9.207624]
[1722170118078,0.0912645,68123.0,68122.0,9.029624]
[1722170118291,0.0912645,68123.0,68122.0,9.32506]
[1722170118625,0.0912645,68123.0,68122.0,9.207624]
[1722170118853,0.06822353,68123.0,68122.0,9.029624]
[1722170119815,0.18565753,68123.0,68122.0,9.029624]
[1722170119976,0.06822353,68123.0,68122.0,9.029624]
[1722170120177,0.06822353,68123.0,68122.0,9.207624]
[1722170120472,0.06822353,68123.0,68122.0,9.32506]
[1722170120684,0.06822353,68123.0,68122.0,9.207624]
[1722170121003,0.06822353,68123.0,68122.0,9.029624]
[1722170121616,0.06822353,68123.0,68122.0,9.207624]
[1722170121818,0.184734,68123.0,68122.0,9.029624]
[1722170122020,0.06822353,68123.0,68122.0,9.029624]
[1722170122223,0.09126384,68123.0,68122.0,9.029624]
[1722170123205,0.18565753,68123.0,68122.0,9.029624]
[1722170123347,0.06822353,68123.0,68122.0,9.029624]
[1722170123762,0.06977773,68123.0,68122.0,9.029624]
[1722170123961,0.06822353,68123.0,68122.0,9.029624]
[1722170124162,0.18565753,68123.0,68122.0,9.029624]
[1722170125561,0.06822353,68123.0,68122.0,9.207624]
[1722170125759,0.18565753,68123.0,68122.0,9.207624]
[1722170125962,0.06822353,68123.0,68122.0,9.029624]
[1722170126074,0.06822353,68123.0,68122.0,9.207624]
[1722170126278,0.02496377,68123.0,68122.0,9.207624]
[1722170126900,0.00192353,68123.0,68122.0,9.207624]
[1722170127314,0.00192353,68123.0,68122.0,9.029624]
[1722170127474,0.00192353,68123.0,68122.0,9.207624]
[1722170127682,0.11935753,68123.0,68122.0,9.207624]
[1722170128101,0.00192353,68123.0,68122.0,9.029624]
[1722170128641,0.01403846,68123.0,68122.0,9.207624]
[1722170129415,0.13147246,68123.0,68122.0,9.029624]
[1722170130224,0.15451245,68123.0,68122.0,9.029624]
[1722170130648,0.13147246,68123.0,68122.0,9.029624]
[1722170131029,0.11935753,68123.0,68122.0,9.029624]
[1722170131239,0.36633619,68123.0,68122.0,9.029624]
[1722170131660,0.6012699,68123.0,68122.0,9.029624]
[1722170132529,0.6842699,68123.0,68122.0,9.002924]
[1722170133655,0.68425882,68123.0,68122.0,9.002924]
[1722170133900,0.70729921,68123.0,68122.0,9.002924]
[1722170134101,0.68425882,68123.0,68122.0,9.002924]
[1722170134345,0.67209553,68123.0,68122.0,9.002924]
[1722170134525,0.68426516,68123.0,68122.0,9.002924]
[1722170136098,0.21452716,68123.0,68122.0,9.002924]
[1722170136315,0.21452716,68123.0,68122.0,9.207624]
[1722170136316,0.01309316,68123.0,68122.0,9.207624]
[1722170136508,0.01709316,68123.0,68122.0,9.32506]
[1722170136687,0.13452716,68123.0,68122.0,9.029624]
[1722170136888,0.01709316,68123.0,68122.0,9.207624]
[1722170137094,0.01709316,68123.0,68122.0,9.794804]
[1722170137095,0.01309316,68123.0,68122.0,9.794804]
[1722170137268,0.01309316,68123.0,68122.0,10.027676]
[1722170137269,0.03613265,68123.0,68122.0,10.027676]
[1722170137485,0.01452135,68123.0,68122.0,10.027676]
[1722170137694,0.01752135,68123.0,68122.0,10.027676]
[1722170137920,0.01552135,68123.0,68122.0,10.027676]
[1722170138121,0.01252135,68123.0,68122.0,10.027676]
[1722170138322,0.001,68123.0,68122.0,9.792804]
[1722170138571,0.00192353,68123.0,68122.0,9.794804]
[1722170140639,0.02496127,68123.0,68122.0,9.794804]
[1722170141348,0.02396127,68123.0,68122.0,9.792804]
[1722170141591,0.02396127,68123.0,68122.0,9.811804]
[1722170141820,0.02303774,68123.0,68122.0,10.046676]
[1722170142050,0.00092353,68125.0,68124.0,0.791862]
[1722170143284,0.00092353,68125.0,68124.0,0.797862]
[1722170143983,0.00092353,68125.0,68124.0,0.805862]
[1722170144740,0.04399169,68130.0,68129.0,0.322124]
[1722170144940,0.04399169,68130.0,68126.0,0.1397]
[1722170144941,0.04399169,68137.0,68136.0,0.0267]
[1722170145070,0.04492991,68139.0,68138.0,0.322108]
[1722170145272,0.00092353,68139.0,68138.0,0.556925]
[1722170145477,0.06796539,68139.0,68138.0,0.556925]
[1722170145866,0.06691106,68139.0,68138.0,0.556925]
[1722170146121,0.06691106,68139.0,68134.0,0.23483]
[1722170146122,0.0609,68137.0,68136.0,0.0267]
[1722170146329,0.0609,68137.0,68132.0,0.0267]
[1722170146330,0.19894053,68133.0,68132.0,0.0267]
[1722170146530,0.00092353,68125.0,68124.0,0.2217]
[1722170146736,0.08895063,68125.0,68124.0,0.2127]
[1722170146939,0.01233733,68125.0,68124.0,0.2127]
[1722170147233,0.01254264,68125.0,68124.0,0.2127]
[1722170147476,0.12257724,68125.0,68124.0,0.2127]
[1722170147684,0.12258089,68125.0,68124.0,0.322132]
[1722170148087,0.01254264,68125.0,68124.0,0.322132]
[1722170148231,0.01254264,68125.0,68124.0,0.791862]
[1722170148617,0.01286534,68125.0,68124.0,0.791862]
[1722170148763,0.06695086,68125.0,68124.0,0.613862]
[1722170148969,0.08998877,68125.0,68124.0,0.791862]
[1722170149182,0.06695086,68125.0,68124.0,0.791862]
[1722170149425,0.00092353,68125.0,68124.0,0.791862]
[1722170149588,0.00092353,68125.0,68124.0,0.818862]
[1722170149790,0.00092353,68125.0,68124.0,0.349132]
[1722170149791,0.10116817,68125.0,68124.0,0.349132]
[1722170149999,0.01313138,68125.0,68124.0,0.583997]
[1722170150193,0.10117253,68125.0,68124.0,0.583997]
[1722170150376,0.00092353,68125.0,68124.0,0.583997]
[1722170150575,0.10106944,68125.0,68124.0,0.583997]
[1722170150847,0.01302306,68125.0,68124.0,0.583997]
[1722170151123,0.01302306,68125.0,68124.0,0.818862]
[1722170151324,0.12308104,68125.0,68124.0,0.583997]
[1722170152075,0.01302306,68125.0,68124.0,0.583997]
[1722170152999,0.01302933,68125.0,68124.0,0.640862]
[1722170153205,0.10107184,68125.0,68124.0,0.818862]
[1722170153415,0.10107184,68125.0,68124.0,0.583997]
[1722170153638,0.00092353,68125.0,68124.0,0.583997]
[1722170153850,0.10117007,68125.0,68124.0,0.583997]
[1722170154235,0.12318002,68125.0,68124.0,0.583997]
[1722170154625,0.01313031,68125.0,68124.0,0.583997]
[1722170155145,0.10116968,68125.0,68124.0,0.583997]
[1722170155367,0.01313031,68125.0,68124.0,0.583997]
[1722170155620,0.10116848,68125.0,68124.0,0.583997]
[1722170155819,0.06694959,68125.0,68124.0,0.583997]
[1722170156018,0.00092353,68125.0,68124.0,0.583997]
[1722170156211,0.00092353,68125.0,68124.0,0.818862]
[1722170156555,0.00092353,68125.0,68124.0,1.193127]
[1722170156965,0.00092353,68125.0,68124.0,0.958262]
[1722170157370,0.04493649,68125.0,68124.0,0.958262]
[1722170158168,0.00092353,68125.0,68124.0,0.958262]
[1722170159159,0.0239611,68125.0,68124.0,0.958262]
[1722170159413,0.0239611,68125.0,68124.0,0.780262]
[1722170159626,0.00092353,68125.0,68124.0,0.780262]
[1722170160425,0.00092353,68125.0,68124.0,0.583997]
[1722170160872,0.01269024,68125.0,68124.0,0.2317]
[1722170161092,0.12273838,68125.0,68124.0,0.349132]
[1722170161312,0.01269024,68125.0,68124.0,0.349132]
[1722170161789,0.01269024,68125.0,68124.0,0.171132]
[1722170162045,0.01269024,68125.0,68124.0,0.349132]
[1722170162279,0.01269024,68125.0,68124.0,0.171132]
[1722170162552,0.01273248,68125.0,68124.0,0.171132]
[1722170162991,0.0357706,68125.0,68124.0,0.171132]
[1722170164132,0.01273248,68125.0,68124.0,0.171132]
[1722170164922,0.73808748,68125.0,68124.0,0.027]
[1722170165714,1.03474646,68125.0,68124.0,0.027]
[1722170165908,0.97293751,68125.0,68124.0,0.027]
[1722170166359,0.73807551,68125.0,68124.0,0.027]
[1722170166626,0.35322653,68123.0,68122.0,9.000924]
[1722170166796,0.01272051,68123.0,68122.0,9.32306]
[1722170167551,0.01272051,68123.0,68122.0,9.205624]
[1722170167784,0.01272051,68123.0,68122.0,9.32306]
[1722170168989,0.02213364,68123.0,68122.0,9.32306]
[1722170169255,0.02213364,68123.0,68122.0,9.217624]
[1722170169460,0.19550769,68123.0,68122.0,9.039624]
[1722170169630,0.13220769,68123.0,68122.0,9.217624]
[1722170169944,0.13220769,68123.0,68122.0,9.578932]
[1722170170492,0.155247,68123.0,68122.0,9.578932]
[1722170170901,0.155247,68123.0,68122.0,9.226624]
[1722170171261,0.155247,68123.0,68122.0,9.34406]
[1722170171418,0.13220769,68123.0,68122.0,9.34406]
[1722170171946,0.13220769,68123.0,68122.0,9.578932]
[1722170172161,0.15525152,68123.0,68122.0,9.34406]
[1722170172562,0.15538214,68123.0,68122.0,9.226624]
[1722170172966,0.24977683,68123.0,68122.0,9.048624]
[1722170173317,0.37456448,68123.0,68122.0,9.021924]
[1722170173464,0.37456448,68123.0,68122.0,9.048624]
[1722170174469,0.37457511,68123.0,68122.0,9.048624]
[1722170174728,0.37457511,68123.0,68122.0,9.226624]
[1722170175208,0.37466584,68123.0,68122.0,9.048624]
[1722170175408,0.37466584,68123.0,68122.0,9.021924]
[1722170175709,0.20629684,68123.0,68122.0,9.021924]
[1722170175914,0.44116584,68123.0,68122.0,9.021924]
[1722170177612,0.46420611,68123.0,68122.0,9.021924]
[1722170177812,0.69907511,68123.0,68122.0,9.021924]
[1722170178016,0.44116584,68123.0,68122.0,9.021924]
[1722170178222,0.57327517,68123.0,68122.0,9.021924]
[1722170178385,0.44101668,68123.0,68122.0,9.021924]
[1722170178622,0.57314095,68123.0,68122.0,9.021924]
[1722170179059,0.80800995,68123.0,68122.0,9.021924]
[1722170179282,0.67588568,68123.0,68122.0,9.021924]
[1722170179984,0.77146823,68123.0,68122.0,9.021924]
[1722170180531,0.67588568,68123.0,68122.0,9.021924]
[1722170180724,0.6989261,68123.0,68122.0,9.021924]
[1722170181359,0.67588568,68123.0,68122.0,9.021924]
[1722170181977,0.98745468,68123.0,68122.0,9.021924]
[1722170182196,1.06146453,68123.0,68122.0,9.021924]
[1722170182358,1.13955178,68123.0,68122.0,9.021924]
[1722170182707,1.21621244,68123.0,68122.0,9.021924]
[1722170182861,1.06755178,68123.0,68122.0,9.021924]
[1722170183252,1.13955178,68123.0,68122.0,9.021924]
[1722170183444,1.13955178,68123.0,68122.0,9.000924]
[1722170183648,1.13955178,68123.0,68122.0,9.004924]
[1722170183849,1.13955178,68123.0,68122.0,9.009924]
[1722170184047,1.06146453,68123.0,68122.0,9.009924]
[1722170184255,1.15820542,68123.0,68122.0,9.005924]
[1722170184764,1.08450533,68123.0,68122.0,9.005924]
[1722170184978,1.15820542,68123.0,68122.0,9.005924]
[1722170185194,1.15820542,68123.0,68122.0,9.000924]
[1722170185395,1.15820542,68123.0,68122.0,9.003924]
[1722170188206,1.06146453,68123.0,68122.0,9.003924]
[1722170188407,1.15806291,68123.0,68122.0,8.982864]
[1722170191767,1.15811126,68123.0,68122.0,8.982864]
[1722170192165,1.06146453,68123.0,68122.0,8.982864]
[1722170192390,1.1580693,68123.0,68122.0,8.982864]
[1722170192704,1.28959851,68123.0,68122.0,8.982864]
[1722170193323,1.64746751,68123.0,68122.0,8.982864]
[1722170194840,1.64910618,68123.0,68122.0,8.982864]
[1722170195214,1.51757697,68123.0,68122.0,8.982864]
[1722170196250,1.54062043,68123.0,68122.0,8.982864]
[1722170198052,1.54059354,68123.0,68122.0,8.982864]
[1722170201762,1.44237699,68123.0,68122.0,8.982864]
[1722170201935,1.54090244,68123.0,68122.0,8.982864]
[1722170202136,1.65040618,68123.0,68122.0,8.982864]
[1722170202504,1.54090244,68123.0,68122.0,8.982864]
[1722170203771,1.54077248,68123.0,68122.0,8.982864]
[1722170204431,1.54085695,68123.0,68122.0,8.982864]
[1722170206381,1.54169695,68123.0,68122.0,8.982864]
[1722170206931,1.28382795,68123.0,68122.0,8.982864]
[1722170207066,1.11758449,68123.0,68122.0,8.982864]
[1722170208326,1.26595869,68123.0,68122.0,8.982864]
[1722170208488,1.2037397,68123.0,68122.0,8.982864]
[1722170210550,1.5848087,68123.0,68122.0,8.982864]
[1722170210760,1.6078087,68123.0,68122.0,8.982864]
[1722170211623,1.60779123,68123.0,68122.0,8.982864]
[1722170211744,1.63083414,68123.0,68122.0,8.982864]
[1722170212141,1.60779123,68123.0,68122.0,8.982864]
[1722170212983,1.82418976,68123.0,68122.0,8.982864]
[1722170213183,2.05905876,68123.0,68122.0,8.982864]
[1722170213596,2.05960232,68123.0,68122.0,8.982864]
[1722170214231,2.05965405,68123.0,68122.0,8.982864]
[1722170214956,2.08269826,68123.0,68122.0,8.982864]
[1722170215540,2.05965405,68123.0,68122.0,8.982864]
[1722170217276,2.05965405,68123.0,68122.0,8.979864]
[1722170217463,2.06269771,68123.0,68122.0,8.980864]
[1722170217664,1.8463008,68123.0,68122.0,8.922146]
[1722170218079,1.9051718,68123.0,68122.0,8.922146]
[1722170218692,1.93221664,68123.0,68122.0,8.923146]
[1722170218901,1.92821664,68123.0,68122.0,8.922146]
[1722170219460,1.58814759,68123.0,68122.0,8.923146]
[1722170219665,1.58114759,68123.0,68122.0,8.921146]
[1722170219785,1.59514759,68123.0,68122.0,8.923146]
[1722170220456,1.58514759,68123.0,68122.0,8.922146]
[1722170220651,1.59523103,68123.0,68122.0,8.923146]
[1722170220856,1.7454906,68123.0,68122.0,8.923146]
[1722170221269,1.74569334,68123.0,68122.0,8.923146]
[1722170221908,1.66499334,68123.0,68122.0,8.923146]
[1722170222845,1.58864911,68123.0,68122.0,8.923146]
[1722170223102,1.68796511,68123.0,68122.0,8.923146]
[1722170224021,1.6649201,68123.0,68122.0,8.923146]
[1722170224238,1.44916053,68123.0,68122.0,8.923146]
[1722170226071,1.34984453,68123.0,68122.0,8.923146]
[1722170226186,1.44895699,68123.0,68122.0,8.923146]
[1722170227051,1.47200196,68123.0,68122.0,8.923146]
[1722170227776,1.66555068,68123.0,68122.0,8.923146]
[1722170228911,1.81581025,68123.0,68122.0,8.923146]
[1722170229235,1.59921656,68123.0,68122.0,8.923146]
[1722170229550,1.59930224,68123.0,68122.0,8.923146]
[1722170231109,1.62234725,68123.0,68122.0,8.923146]
[1722170232096,1.59930224,68123.0,68122.0,8.923146]
[1722170232795,1.59921993,68123.0,68122.0,8.923146]
[1722170233166,1.5001041,68123.0,68122.0,8.923146]
[1722170233371,1.59921994,68123.0,68122.0,8.923146]
[1722170235153,1.59940882,68123.0,68122.0,8.923146]
[1722170235350,1.85732279,68123.0,68122.0,8.923146]
[1722170235490,2.00002279,68123.0,68122.0,8.923146]
[1722170236008,1.99983677,68123.0,68122.0,8.923146]
[1722170236212,1.9767918,68123.0,68122.0,8.923146]
[1722170237956,1.44896323,68123.0,68122.0,8.923146]
[1722170239124,1.45297869,68123.0,68122.0,8.923146]
[1722170239515,1.47602349,68123.0,68122.0,8.923146]
[1722170240273,0.70606969,68123.0,68122.0,9.063846]
[1722170240480,0.47120069,68123.0,68122.0,9.063846]
[1722170240648,0.70606969,68123.0,68122.0,9.063846]
[1722170240985,0.69606969,68123.0,68122.0,9.062846]
[1722170241631,0.79606969,68123.0,68122.0,9.062846]
[1722170242247,0.96747309,68123.0,68122.0,9.061846]
[1722170242619,0.96747309,68123.0,68122.0,9.062846]
[1722170242620,0.80908291,68123.0,68122.0,9.062846]
[1722170242766,0.80859797,68123.0,68122.0,9.062846]
[1722170243369,0.83163989,68123.0,68122.0,9.062846]
[1722170243968,0.57372897,68123.0,68122.0,9.062846]
[1722170244457,0.50548669,68123.0,68122.0,9.062846]
[1722170244629,0.50511762,68123.0,68122.0,9.062846]
[1722170245458,0.73098566,68123.0,68122.0,9.062846]
[1722170245598,0.86652955,68123.0,68122.0,9.062846]
[1722170245794,0.86752955,68123.0,68122.0,9.062846]
[1722170246244,0.79875667,68123.0,68122.0,9.062846]
[1722170246470,0.85852795,68123.0,68122.0,9.061846]
[1722170246671,0.79275667,68123.0,68122.0,9.061846]
[1722170246895,0.79375667,68123.0,68122.0,9.061846]
[1722170247091,0.86162341,68123.0,68122.0,9.061846]
[1722170247637,0.79375667,68123.0,68122.0,9.061846]
[1722170248042,0.10658467,68123.0,68122.0,9.061846]
[1722170248251,0.23860588,68123.0,68122.0,9.061846]
[1722170248451,0.10658467,68123.0,68122.0,9.061846]
[1722170248681,0.10667821,68123.0,68122.0,9.061846]
[1722170249309,0.22411221,68123.0,68122.0,9.061846]
[1722170249465,0.45898121,68123.0,68122.0,9.061846]
[1722170249871,0.45698121,68123.0,68122.0,9.061846]
[1722170250056,0.45598121,68123.0,68122.0,9.064846]
[1722170250473,0.45698121,68123.0,68122.0,9.070846]
[1722170251213,0.48002219,68123.0,68122.0,9.070846]
[1722170251439,0.69208113,68123.0,68122.0,9.070846]
[1722170251775,0.69208113,68123.0,68122.0,9.067846]
[1722170251974,0.69206247,68123.0,68122.0,9.067846]
[1722170252226,0.69206247,68123.0,68122.0,9.071846]
[1722170252425,0.6578275,68123.0,68122.0,9.071846]
[1722170252597,0.69206325,68123.0,68122.0,9.071846]
[1722170254051,0.45719425,68123.0,68122.0,9.071846]
[1722170254453,0.03699928,68123.0,68122.0,9.393982]
[1722170254658,0.14796619,68123.0,68122.0,9.393982]
[1722170254861,0.06004001,68123.0,68122.0,9.393982]
[1722170255033,0.03699928,68123.0,68122.0,9.628854]
[1722170255237,0.10293397,68123.0,68122.0,9.628854]
[1722170255645,0.10293397,68123.0,68122.0,9.393982]
[1722170256117,0.10293397,68123.0,68122.0,9.276546]
[1722170256294,0.15443328,68123.0,68122.0,9.276546]
[1722170256702,0.15443328,68123.0,68122.0,9.098546]
[1722170257329,0.03699928,68123.0,68122.0,9.098546]
[1722170257866,0.11212907,68123.0,68122.0,9.098546]